Cogmind - Beta 14 @@@ ROGUE MODE // 2024.08.16 @ 20:56:25 Player: OctagonalPrism Result: Destroyed by H-88 Terminator with KE Penetrator Performance ------------- Evolutions (9) 4500 Regions Visited (11) 2200 Robots Destroyed (176) 880 Value Destroyed (6868) 6868 Prototype IDs (12) 240 Alien Tech Used (0) 0 Bonus (1120) 1120 TOTAL SCORE: 15808 Bonus ------- High Alert Combat Kills 535 Follower Combat Kills 85 Entered DSFs 500 Cogmind --------- Core Integrity 0/1600 Matter 285/300 Energy 100/100 System Corruption 0% Temperature Cool (0) Movement Core (50) Location -1/Access Parts ------- > --- POWER (3) -------- (None) > --- PROPULSION (5) --- (None) > --- UTILITY (13) ----- Advanced Gravity Neutralizer > --- WEAPON (4) ------- (None) > --- INVENTORY (5) ---- Light Antimatter Reactor Light Antimatter Reactor Medium Storage Unit Phase Gun Peak State ------------ > --- POWER ------------ (None) > --- PROPULSION ------- Medium Treads Advanced Heavy Treads Improved Heavy Siege Treads > --- UTILITY ---------- Advanced Heat Sink Advanced Heat Sink Medium Storage Unit Structural Scanner Advanced Sensor Array Advanced Targeting Computer Centrium Heavy Armor Plating Graphene Brace Advanced Hacking Suite > --- WEAPON ----------- Plasma Rifle Quantum Rifle Railgun Heavy Gauss Cannon > --- INVENTORY -------- Advanced Heat Sink Hellfire Missile Launcher Enhanced Force Lance [Rating: 116] Favorites ----------- Power Nuclear Core Engine Light Ion Engine Power Core Nuclear Core Reactor Light Antimatter Reactor Propulsion Light Treads Treads Light Treads Leg Aluminum Leg Wheel Compact Wheel Hover Unit Antigrav System Flight Unit VTOL Module Utility Medium Storage Unit Device Graphene Brace Storage Medium Storage Unit Processor Advanced Targeting Computer Hackware Advanced System Shield Protection Hardened Medium Armor Plating Weapon Minigun Energy Gun Cooled Pulse Rifle Ballistic Gun Minigun Ballistic Cannon Heavy Gauss Cannon Launcher Mini Grenade Launcher Impact Weapon Great Maul Slashing Weapon Power Sword Piercing Weapon Enhanced Force Lance Build | -11 -10 -9 -8 -7 -6 -5 -4 -3 -2 -2 -1 ------- Run | Yrd Mat Mat Mat Fac Fac Fac Fac Res Res DSF Acc Slots Evolved 18 | . . 2 2 2 2 2 2 2 2 . 2 Power 2 | . . . . . . . 1 . 1 . . Propulsion 3 | . . . . 1 . 1 . 1 . . . Utility 11 | . . 2 1 1 2 1 1 1 . . 2 Weapon 2 | . . . 1 . . . . . 1 . . Parts Attached 214 | 6 5 23 27 20 19 30 15 33 . 11 25 Power 28 | 1 1 2 5 2 . 5 2 3 . 1 6 Engine 12 | 1 1 2 . 1 . 1 2 3 . . 1 Core 11 | . . . 5 1 . 4 . . . 1 . Reactor 5 | . . . . . . . . . . . 5 Propulsion 54 | 2 1 7 7 3 6 5 6 9 . 2 6 Treads 35 | 2 1 5 7 3 6 3 . 6 . 2 . Leg 4 | . . 2 . . . . . . . . 2 Wheel 1 | . . . . . . . . . . . 1 Hover 8 | . . . . . . . 6 2 . . . Flight 6 | . . . . . . 2 . 1 . . 3 Utility 73 | 1 2 5 8 9 9 12 3 13 . 6 5 Device 46 | . 1 3 5 3 7 11 3 9 . 1 3 Storage 6 | 1 1 . . . . 1 . 2 . . 1 Processor 5 | . . 1 2 2 . . . . . . . Hackware 5 | . . . . . . . . 1 . 4 . Protection 11 | . . 1 1 4 2 . . 1 . 1 1 Artifact . | . . . . . . . . . . . . Weapon 59 | 2 1 9 7 6 4 8 4 8 . 2 8 Energy Gun 11 | . . . 2 1 . 1 1 4 . 1 1 Energy Cannon . | . . . . . . . . . . . . Ballistic Gun 28 | 2 . 6 3 4 2 4 1 1 . . 5 Ballistic Cannon 8 | . 1 1 . . 2 . 1 3 . . . Launcher 6 | . . 2 2 1 . . . . . 1 . Special Weapon . | . . . . . . . . . . . . Impact Weapon 3 | . . . . . . 3 . . . . . Slashing Weapon 1 | . . . . . . . 1 . . . . Piercing Weapon 2 | . . . . . . . . . . . 2 Special Melee Weapon . | . . . . . . . . . . . . Unidentified Prototypes 7 | . . . 1 1 . 1 . 2 . 1 1 Parts Lost 119 | . . 9 9 6 6 26 3 19 . 17 24 Power 16 | . . 1 1 1 . 4 1 5 . 1 2 Propulsion 30 | . . 2 2 1 3 6 2 3 . 3 8 Utility 42 | . . 3 4 2 1 10 . 7 . 8 7 Weapon 31 | . . 3 2 2 2 6 . 4 . 5 7 Highest Loss Streak 14 | . . 6 7 4 1 13 1 8 . 14 8 To Critical Strikes . | . . . . . . . . . . . . Average Slot Usage (%) 78 | . 93 84 93 94 95 79 51 65 65 41 16 Engine 3 | . 14 10 . 4 . . 5 4 . . . Core 2 | . . . 8 2 6 3 3 . . . . Treads 15 | . 28 18 16 20 19 14 . 11 13 6 1 Device 16 | . 7 8 15 15 22 23 9 23 21 12 2 Storage 6 | . 14 11 9 7 6 4 . 2 4 2 . Processor 9 | . . 11 9 15 16 11 10 5 4 2 . Protection 3 | . . . 7 5 6 2 . . 4 2 . Energy Gun 3 | . . . 8 4 6 3 1 4 4 3 . Ballistic Gun 9 | . 25 14 17 16 3 5 2 1 4 2 2 Ballistic Cannon 3 | . 2 7 . . 5 3 3 4 4 1 . Peak Build Rating 116 | 6 10 16 34 50 56 75 71 111 111 116 65 Average Rating 46 | 4 6 12 24 41 53 51 47 91 111 75 29 On Entrance 44 | . 6 9 16 34 49 52 21 66 111 111 61 Naked Turns 24 | . . . . . . . . . . 9 15 Heaviest Build 64 | 14 24 30 34 43 49 48 38 61 61 64 45 Greatest Support 175 | 40 40 40 40 76 76 80 44 175 28 75 25 Greatest Overweight (x) 20 | 1 . 4 8 1 1 2 1 2 2 20 11 Average Overweight (x) . | . . . . . . . . . 2 . . Largest Inventory Capacity 10 | 8 10 10 10 10 10 10 5 10 10 10 10 Average Capacity 9 | 7 9 10 10 10 10 9 5 8 10 8 5 Most Carried 10 | . 6 7 10 10 10 8 5 8 4 5 5 Average Carried 5 | . 1 6 7 8 8 5 3 4 4 3 3 Final Capacity 10 | 8 10 10 10 10 10 5 5 10 10 5 5 Final Carried 8 | . 5 7 8 8 7 4 5 4 4 4 4 Class Distribution -------------------- 34% | Scavenger-Gunner 24% | Mutant 13% | Scavenger-Tank 13% | Scavenger-Mutant 8% | Gunner Dominant Class ---------------- Mutant | -10/Materials Scavenger-Mutant | -9/Materials Scavenger-Gunner | -8/Materials Scavenger-Gunner | -7/Factory Scavenger-Gunner | -6/Factory Scavenger-Gunner | -5/Factory Mutant | -4/Factory Scavenger-Mutant | -3/Research Scavenger-Tank | -2/Research Scavenger-Tank | -2/DSF Mutant | -1/Access Resources | -11 -10 -9 -8 -7 -6 -5 -4 -3 -2 -2 -1 ----------- Run | Yrd Mat Mat Mat Fac Fac Fac Fac Res Res DSF Acc Matter Collected 5543 | 259 102 712 488 576 555 797 30 1228 . 349 447 Remotely 1503 | . . 433 . 303 8 405 . 354 . . . Salvage Created 6777 | . 122 1020 707 598 935 1243 65 1271 . 212 604 Parts 380 | . 12 70 48 40 51 82 7 49 . 1 20 Haulers Intercepted 4 | . 1 1 . . 1 1 . . . . . Recyclers Shooed 8 | . . . . . 1 3 . 3 . . 1 Parts Field Recycled . | . . . . . . . . . . . . Retrieved Matter . | . . . . . . . . . . . . Parts Self-Destructed . | . . . . . . . . . . . . Prevented . | . . . . . . . . . . . . Kills | -11 -10 -9 -8 -7 -6 -5 -4 -3 -2 -2 -1 ------- Run | Yrd Mat Mat Mat Fac Fac Fac Fac Res Res DSF Acc Combat Hostiles Destroyed 137 | . 3 33 18 13 18 19 4 17 . 4 8 Melee 3 | . . . . . . 1 . . . . 2 Guns 75 | . 3 16 16 10 2 16 . 5 . 1 6 Cannons 43 | . . 9 . . 16 2 4 11 . 1 . AOE 15 | . . 8 2 3 . . . . . 2 . Classes Destroyed 17 | . 3 8 2 2 . 2 . . . . . Worker 7 | . . 1 . 1 . 3 . 2 . . . Builder 7 | . . 1 . . 2 3 . 1 . . . Tunneler 1 | . . 1 . . . . . . . . . Hauler 4 | . 1 1 . . 1 1 . . . . . Recycler 7 | . . 1 . 1 . 1 . 3 . . 1 Operator 3 | . . 1 . . . . 1 1 . . . Watcher 10 | . 1 2 . 2 . 3 . 2 . . . Swarmer 36 | . 3 11 4 4 . 6 4 . . . 4 Grunt 58 | . . 18 7 5 9 7 . 8 . . 4 Brawler 4 | . . 1 1 1 . . . 1 . . . Duelist 1 | . . . . 1 . . . . . . . Sentry 12 | . . 3 3 . 2 . . 3 . 1 . Specialist 5 | . . . . . . 2 . . . 3 . Hunter 4 | . . . 2 1 . 1 . . . . . Programmer 12 | . . . . 1 5 1 . 5 . . . Heavy 4 | . . . 1 . 2 1 . . . . . Behemoth 1 | . . . . . . 1 . . . . . Best Kill Streak 14 | . 3 14 8 8 7 10 4 4 . 3 3 Combat Bots Only 8 | . 3 8 8 8 5 7 4 3 . 3 3 Max Kills in Single Turn 4 | . 1 4 1 2 2 3 1 1 . 1 1 Gunslinging 2 | . . . . . . 2 . . . . . Exploded 4 | . . 4 1 1 . . . . . 1 . Melee 1 | . . . . . . 1 . . . . 1 Uniques/NPCs Destroyed . | . . . . . . . . . . . . Combat | -11 -10 -9 -8 -7 -6 -5 -4 -3 -2 -2 -1 -------- Run | Yrd Mat Mat Mat Fac Fac Fac Fac Res Res DSF Acc Hostile Shots Fired 1516 | . 17 182 128 109 95 237 42 216 . 212 278 Missed 429 | . 4 43 36 31 35 78 19 49 . 60 74 Damage Taken 23330 | . 103 1614 1707 1364 1297 3632 450 3786 . 5120 4257 Core 4434 | . 15 284 441 105 121 665 69 346 . 775 1613 Absorbed by Shields 41 | . . . . . . . . . . 41 . Reduced by Siege Mode 191 | . . . . . . . . 86 . 46 59 Ignored by Resistances 24 | . . . . . . 24 . . . . . Regen/Repaired (Parts) 61 | . . . 61 . . . . . . . . Core Remaining (%) 65 | 100 94 29 19 85 85 33 94 73 . 46 . Volleys Fired 447 | . 13 80 56 37 50 57 10 98 . 12 34 Largest 4 | . 2 2 3 3 3 3 2 3 . 4 3 Hottest 265 | . 59 69 106 109 96 136 80 229 . 265 99 Shots Fired 958 | . 26 153 152 78 109 159 14 185 . 32 50 Gun 676 | . 25 95 149 75 63 120 4 74 . 21 50 Cannon 267 | . 1 56 . . 46 39 10 111 . 4 . Launcher 15 | . . 2 3 3 . . . . . 7 . Special . | . . . . . . . . . . . . Kinetic 715 | . 26 151 96 71 62 125 14 111 . 15 44 Thermal 212 | . . . 53 4 47 34 . 58 . 10 6 Explosive 15 | . . 2 3 3 . . . . . 7 . Electromagnetic 16 | . . . . . . . . 16 . . . Robot Hit Streak 30 | . 2 17 29 16 30 19 6 14 . 11 7 Robot Miss Streak 4 | . 2 3 3 4 4 3 1 4 . 1 4 Penetration Max 1 | . . . . 1 1 1 . 1 . 1 1 Secondary Targets 15 | . 1 2 5 2 . 5 . . . . . Max Gunslinging Chain 2 | . 1 1 1 1 . 2 . . . . . Shots Hit Robots 674 | . 14 106 107 53 67 123 10 130 . 26 38 Core Hits 325 | . 7 57 41 31 34 60 4 54 . 19 18 Critical Kills 3 | . . . . . . . . . . . 3 Critical Parts Destroyed 14 | . . 2 . 1 2 2 . 2 . . 5 Critical Strikes 41 | . . 2 3 1 7 4 . 14 . . 10 Burn 4 | . . . 3 . . . . 1 . . . Destroy 17 | . . 2 . 1 2 2 . 2 . . 8 Blast 18 | . . . . . 5 2 . 11 . . . Impale 2 | . . . . . . . . . . . 2 Melee Attacks 19 | . . . . . . 6 1 . . . 12 Impact 6 | . . . . . . 6 . . . . . Slashing 1 | . . . . . . . 1 . . . . Piercing 12 | . . . . . . . . . . . 12 Sneak Attacks 3 | . . . . . . 1 . . . . 2 Combat Hostiles . | . . . . . . . . . . . . Follow-up Attacks . | . . . . . . . . . . . . Damage Inflicted 20899 | . 169 2238 1990 1434 2645 4107 327 4864 . 2088 1037 Guns 10213 | . 169 1022 1850 1033 818 2884 13 1384 . 415 625 Cannons 7534 | . . 834 . . 1827 1066 263 3407 . 137 . Explosions 2532 | . . 382 140 401 . . . 73 . 1536 . Melee 620 | . . . . . . 157 51 . . . 412 Ramming . | . . . . . . . . . . . . Kinetic 14278 | . 169 1856 1221 1016 2057 3329 276 3407 . 396 551 Thermal 3225 | . . . 629 17 588 621 . 1140 . 156 74 Explosive 2459 | . . 382 140 401 . . . . . 1536 . Electromagnetic 317 | . . . . . . . . 317 . . . Impact 157 | . . . . . . 157 . . . . . Slashing 51 | . . . . . . . 51 . . . . Piercing 412 | . . . . . . . . . . . 412 Highest Corruption 16 | . . 1 . . 2 1 . 14 . 16 . Average Corruption 4 | . . 1 . . 1 1 . 12 . 9 . Corruption Purged . | . . . . . . . . . . . . Corruption Blocked . | . . . . . . . . . . . . Effects 35 | . . 2 . . 6 4 . 15 . 8 . Message Errors 9 | . . . . . 4 . . 4 . 1 . Matter Fused 8 | . . 1 . . . 2 . 4 . 1 . Heat Flow Errors 4 | . . 1 . . . . . 3 . . . Energy Discharges 5 | . . . . . 1 1 . . . 3 . Parts Rejected 2 | . . . . . . 1 . . . 1 . Parts Fused 1 | . . . . . . . . 1 . . . Data Loss (major) 1 | . . . . . 1 . . . . . . Misfires 1 | . . . . . . . . . . 1 . Alerts 1 | . . . . . . . . 1 . . . Weapon Failures 3 | . . . . . . . . 2 . 1 . Overload Shots 8 | . . . . . . 8 . . . . . Overflow Damage 636 | . . . . 14 139 68 36 135 . 116 128 Projectiles 276 | . . . . . 139 2 . 135 . . . Explosions 130 | . . . . 14 . . . . . 116 . Melee 230 | . . . . . . 66 36 . . . 128 Knockbacks 75 | . . 3 . . 10 8 4 47 . 3 . Impact . | . . . . . . . . . . . . Kinetic 65 | . . 3 . . 8 8 4 39 . 3 . Secondary 10 | . . . . . 2 . . 8 . . . Self-Inflicted Damage 544 | . . 45 18 33 . . . 62 . 386 . Shots 9 | . . 1 1 1 . . . 1 . 5 . Rammed . | . . . . . . . . . . . . Targets Rammed . | . . . . . . . . . . . . Kicked . | . . . . . . . . . . . . Crushed . | . . . . . . . . . . . . Highest Temperature 454 | . . 297 287 90 . 72 72 454 . 75 6 Average Temperature 82 | . . 90 91 28 . 24 21 135 . 29 4 Received Heat Transfer 3465 | . . 588 342 387 252 678 27 741 . 117 333 Effects 4 | . . . 1 . . . . 3 . . . Shutdowns 1 | . . . . . . . . 1 . . . Energy Bleed 1 | . . . 1 . . . . . . . . Matter Decay 1 | . . . . . . . . 1 . . . Short Circuit 1 | . . . . . . . . 1 . . . Siege Activations 7 | . . . . . . . . 5 . 1 1 Total Turns 93 | . . . . . . . . 67 . 4 22 Longest Duration 22 | . . . . . . . . 21 . 4 22 Robots Corrupted 1 | . . . . . . 1 . . . . . Combat Hostiles . | . . . . . . . . . . . . Parts Fried 4 | . . . . . . 2 . 2 . . . Impact Corruptions 5 | . . . . . 1 3 . 1 . . . Robots Melted 1 | . . . . . . . . 1 . . . Combat Hostiles 1 | . . . . . . . . 1 . . . Parts Melted 5 | . . . 2 . . . . 1 . 1 1 Heat Transferred 5966 | . . . 1591 37 1036 955 . 1951 . 248 148 Parts Sabotaged . | . . . . . . . . . . . . Parts Stolen . | . . . . . . . . . . . . Parts Stripped . | . . . . . . . . . . . . Power Chain Reactions 1 | . . . . . . . . 1 . . . Alert | -11 -10 -9 -8 -7 -6 -5 -4 -3 -2 -2 -1 ------- Run | Yrd Mat Mat Mat Fac Fac Fac Fac Res Res DSF Acc Peak Influence 719 | . 117 719 561 252 430 606 603 623 268 299 516 Initial 316 | . . 3 303 161 69 210 296 316 265 201 167 Average 293 | . 52 392 361 132 219 305 415 481 265 247 263 Maximum Alert Level 3 | . . 3 2 1 2 2 2 2 1 1 2 Low Security (%) 30 | 100 100 13 . 94 49 13 . . . 4 16 Level 1 41 | . . 46 72 5 41 62 52 14 100 95 74 Level 2 27 | . . 39 27 . 8 24 47 85 . . 8 Level 3 . | . . 1 . . . . . . . . . Level 4 . | . . . . . . . . . . . . Level 5 . | . . . . . . . . . . . . High Security . | . . . . . . . . . . . . Max Security . | . . . . . . . . . . . . Squads Dispatched 42 | . . 5 3 4 8 8 3 5 . 2 4 Investigation 10 | . . 3 1 1 . 1 2 . . . 2 Extermination 9 | . . . . 2 3 . . 3 . . 1 Reinforcement 20 | . . 2 2 1 3 7 1 1 . 2 1 Assault 1 | . . . . . . . . 1 . . . Garrison 2 | . . . . . 2 . . . . . . Intercept . | . . . . . . . . . . . . Searches Triggered . | . . . . . . . . . . . . Construction Impeded 1 | . . . . . . 1 . . . . . Haulers Reinforced 2 | . . . . . 1 1 . . . . . Active Scanning Responses . | . . . . . . . . . . . . Cargo Convoy Interrupts . | . . . . . . . . . . . . Stealth | -11 -10 -9 -8 -7 -6 -5 -4 -3 -2 -2 -1 --------- Run | Yrd Mat Mat Mat Fac Fac Fac Fac Res Res DSF Acc Distress Signals 8 | . . 5 1 1 . 1 . . . . . Communications Jammed . | . . . . . . . . . . . . Distress Signals . | . . . . . . . . . . . . Times Spotted 238 | . 4 42 25 17 19 41 12 27 . 14 37 Peak Tracking Total 15 | . 3 7 7 7 6 12 6 5 . 8 15 Tactical Retreats 19 | . . . 2 . . 6 2 1 . 1 7 Traps | -11 -10 -9 -8 -7 -6 -5 -4 -3 -2 -2 -1 ------- Run | Yrd Mat Mat Mat Fac Fac Fac Fac Res Res DSF Acc Traps Triggered 6 | . . 1 . 1 . 2 . 1 . 1 . Indirectly . | . . . . . . . . . . . . Trap Hack Attempts . | . . . . . . . . . . . . Triggered . | . . . . . . . . . . . . Disarmed . | . . . . . . . . . . . . Reprogrammed . | . . . . . . . . . . . . Reused . | . . . . . . . . . . . . Traps Extracted . | . . . . . . . . . . . . Installed . | . . . . . . . . . . . . Triggered . | . . . . . . . . . . . . Machines | -11 -10 -9 -8 -7 -6 -5 -4 -3 -2 -2 -1 ---------- Run | Yrd Mat Mat Mat Fac Fac Fac Fac Res Res DSF Acc Machines Disabled 13 | . . 3 1 . 2 2 1 3 . 1 . Max in Single Turn 1 | . . 1 1 . 1 1 1 1 . 1 . Garrison Access 2 | . . . . . 1 . . . 1 . . Machines Repaired . | . . . . . . . . . . . . Machines Dismantled . | . . . . . . . . . . . . Machines Sabotaged . | . . . . . . . . . . . . Overloaded Fab Kills . | . . . . . . . . . . . . Hacking | -11 -10 -9 -8 -7 -6 -5 -4 -3 -2 -2 -1 --------- Run | Yrd Mat Mat Mat Fac Fac Fac Fac Res Res DSF Acc Machines Accessed 29 | . 3 6 6 1 2 . 5 1 2 . 3 Terminals 22 | . 3 5 5 1 1 . 3 . 1 . 3 Fabricators 1 | . . . . . . . 1 . . . . Repair Stations 1 | . . . 1 . . . . . . . . Recycling Units 3 | . . 1 . . . . 1 1 . . . Scanalyzers . | . . . . . . . . . . . . Garrison Access 2 | . . . . . 1 . . . 1 . . Total Hacks 80 | . 9 19 21 2 4 . 16 1 3 . 5 Successful 39 | . 2 8 12 1 2 . 9 1 2 . 2 Failed 41 | . 7 11 9 1 2 . 7 . 1 . 3 Catastrophic 3 | . . . . . 1 . 1 . . . 1 Database Lockouts . | . . . . . . . . . . . . Manual 22 | . 6 2 8 . . . 6 . . . . Terminals 60 | . 9 14 16 2 2 . 11 . 1 . 5 Fabricators 1 | . . . . . . . 1 . . . . Repair Stations 5 | . . . 5 . . . . . . . . Recycling Units 10 | . . 5 . . . . 4 1 . . . Scanalyzers . | . . . . . . . . . . . . Garrison Access 4 | . . . . . 2 . . . 2 . . Terminal Hacks 23 | . 1 5 7 1 1 . 5 . 1 . 2 Record 1 | . . . . . . . 1 . . . . Robot Analysis 1 | . . 1 . . . . . . . . . Prototype ID Bank 3 | . 1 1 1 . . . . . . . . Open Door 2 | . . . . . . . . . . . 2 Open DSF 2 | . . . . . . . 1 . 1 . . Emergency Access Points 2 | . . . 1 . . . 1 . . . . Terminal Index 1 | . . . 1 . . . . . . . . Alert Level 4 | . . 1 1 1 . . 1 . . . . Unreport Threat 1 | . . . 1 . . . . . . . . Locate Traps 1 | . . . 1 . . . . . . . . Registered Components 1 | . . 1 . . . . . . . . . Zone Layout 4 | . . 1 1 . 1 . 1 . . . . Fabricator Hacks 1 | . . . . . . . 1 . . . . Network Status 1 | . . . . . . . 1 . . . . Repair Station Hacks 2 | . . . 2 . . . . . . . . Scan Component 1 | . . . 1 . . . . . . . . Repair 1 | . . . 1 . . . . . . . . Recycling Unit Hacks 5 | . . 3 . . . . 1 1 . . . Process 1 | . . 1 . . . . . . . . . Report Inventory 2 | . . 1 . . . . 1 . . . . Retrieve Matter 1 | . . 1 . . . . . . . . . Retrieve Components 1 | . . . . . . . . 1 . . . Scanalyzer . | . . . . . . . . . . . . Garrison Access Hacks 2 | . . . . . 1 . . . 1 . . Seal Access 2 | . . . . . 1 . . . 1 . . Unauthorized Hacks 6 | . 1 . 3 . . . 2 . . . . Terminals 6 | . 1 . 3 . . . 2 . . . . Botnet 6 | . 1 . 3 . . . 2 . . . . Fabricators . | . . . . . . . . . . . . Repair Stations . | . . . . . . . . . . . . Recycling Units . | . . . . . . . . . . . . Scanalyzers . | . . . . . . . . . . . . Garrison Access . | . . . . . . . . . . . . Data Cores Recovered 1 | . . . . . . . 1 . . . . Used . | . . . . . . . . . . . . Hacking Detections 25 | . 3 6 6 . 2 . 4 1 1 . 2 Full Trace Events 12 | . 1 3 4 . . . 2 . . . 2 Feedback Events . | . . . . . . . . . . . . Feedback Blocked . | . . . . . . . . . . . . Robot Schematics Acquired . | . . . . . . . . . . . . Robots Built . | . . . . . . . . . . . . Authchips . | . . . . . . . . . . . . Time . | . . . . . . . . . . . . Total Robot Build Rating . | . . . . . . . . . . . . Part Schematics Acquired . | . . . . . . . . . . . . Parts Built . | . . . . . . . . . . . . Authchips . | . . . . . . . . . . . . Time . | . . . . . . . . . . . . Total Part Build Rating . | . . . . . . . . . . . . Parts Repaired 1 | . . . 1 . . . . . . . . Time 38 | . . . 38 . . . . . . . . Parts Recycled . | . . . . . . . . . . . . Recycled Matter 127 | . . 127 . . . . . . . . . Retrieved Matter 211 | . . 211 . . . . . . . . . Retrieved Components 10 | . . . . . . . . 10 . . . Parts Scanalyzed . | . . . . . . . . . . . . Part Schematics Acquired . | . . . . . . . . . . . . Parts Damaged . | . . . . . . . . . . . . Bothacking | -11 -10 -9 -8 -7 -6 -5 -4 -3 -2 -2 -1 ------------ Run | Yrd Mat Mat Mat Fac Fac Fac Fac Res Res DSF Acc Used RIF Installer . | . . . . . . . . . . . . Robots Hacked . | . . . . . . . . . . . . Non-combat . | . . . . . . . . . . . . Combat . | . . . . . . . . . . . . Robot Hacks Applied . | . . . . . . . . . . . . Relay Couplers Released 2 | . . . . . 2 . . . . . . Programmers 2 | . . . . . 2 . . . . . . Fabnet Peak Effective % . | . . . . . . . . . . . . Robots Rewired 1 | . . . . 1 . . . . . . . Allies Hacked . | . . . . . . . . . . . . Hacks Repelled . | . . . . . . . . . . . . Allies | -11 -10 -9 -8 -7 -6 -5 -4 -3 -2 -2 -1 -------- Run | Yrd Mat Mat Mat Fac Fac Fac Fac Res Res DSF Acc Total Allies 13 | . . . . 1 12 . . . . . . Largest Group 11 | . . . . 1 11 . . . . . . Highest-Rated Group 273 | . . . . 34 273 . . . . . . Highest-Rated Ally 34 | . . . . 34 31 . . . . . . Total Orders . | . . . . . . . . . . . . Ally Attacks 15 | . . . . 4 11 . . . . . . Total Damage 462 | . . . . 210 252 . . . . . . Kills 3 | . . . . 2 1 . . . . . . Allies Corrupted . | . . . . . . . . . . . . Allies Melted . | . . . . . . . . . . . . Intel | -11 -10 -9 -8 -7 -6 -5 -4 -3 -2 -2 -1 ------- Run | Yrd Mat Mat Mat Fac Fac Fac Fac Res Res DSF Acc Robot Analysis Total 1 | . . 1 . . . . . . . . . Derelict Logs Recovered . | . . . . . . . . . . . . Drone Launches . | . . . . . . . . . . . . Drone Recoveries . | . . . . . . . . . . . . Exploration | -11 -10 -9 -8 -7 -6 -5 -4 -3 -2 -2 -1 ------------- Run | Yrd Mat Mat Mat Fac Fac Fac Fac Res Res DSF Acc Turns Passed 6810 | 69 529 749 901 876 789 796 249 1060 215 243 334 Spaces Moved 3630 | 41 282 291 373 393 349 529 434 438 68 191 241 Core 426 | 5 . 1 1 . . 91 . . . 142 186 Treads 2370 | 36 282 236 372 393 349 271 . 314 68 49 . Legs 62 | . . 54 . . . . . . . . 8 Wheels 4 | . . . . . . . . . . . 4 Hover 381 | . . . . . . . 257 124 . . . Flight 387 | . . . . . . 167 177 . . . 43 Fastest Speed 32 | 50 160 120 160 163 163 32 32 48 320 50 37 Average Speed 132 | 149 160 161 165 183 166 105 43 133 320 91 73 Slowest Speed 1050 | 160 160 250 450 245 250 320 111 320 320 1050 600 Overloaded Moves . | . . . . . . . . . . . . Propulsion Burnouts . | . . . . . . . . . . . . Robots Hopped . | . . . . . . . . . . . . Cave-ins Triggered . | . . . . . . . . . . . . Exploration Rate (%) 23 | 4 50 34 27 13 14 20 11 10 2 92 7 Regions Visited 11 Branch Regions . Pre-discovered Areas . | . . . . . . . . . . . . Known Exits Taken 1 | . . . . . . . . . 1 . . Unknown Exits Taken 9 | 1 1 1 1 1 1 1 1 1 . . . Scrap Searched . | . . . . . . . . . . . . Spaces Dug 5 | . . . . . 1 . . 4 . . . Terrain Destroyed 180 | . . 15 35 13 15 9 2 50 . 41 . Melee . | . . . . . . . . . . . . Projectile 63 | . . 6 . 2 15 9 2 27 . 2 . AOE 117 | . . 9 35 11 . . . 23 . 39 . Terrain Rammed . | . . . . . . . . . . . . Walls Destroyed . | . . . . . . . . . . . . Machines Disabled . | . . . . . . . . . . . . Actions | -11 -10 -9 -8 -7 -6 -5 -4 -3 -2 -2 -1 --------- Run | Yrd Mat Mat Mat Fac Fac Fac Fac Res Res DSF Acc Total 4762 | 46 333 411 545 482 441 663 476 749 67 229 320 Wait 291 | . 25 9 68 1 3 25 7 153 . . . Move 3619 | 40 281 290 372 392 348 528 433 437 67 190 241 Hop . | . . . . . . . . . . . . Pick Up 66 | . 5 5 10 7 9 7 6 13 . 3 1 Fast Attach 94 | 6 2 7 9 4 3 10 6 20 . 8 19 Attach 65 | . . 4 6 5 8 14 6 13 . 3 6 Detach 20 | . 1 . 1 1 2 4 2 2 . 1 6 Swap 55 | . 3 12 12 11 8 6 3 . . . . Drop 60 | . 3 4 11 8 10 6 2 13 . 2 1 Fire 447 | . 13 80 56 37 50 57 10 98 . 12 34 Melee 19 | . . . . . . 6 1 . . . 12 Ram . | . . . . . . . . . . . . Kick . | . . . . . . . . . . . . Crush . | . . . . . . . . . . . . Escape Stasis 9 | . . . . . . . . . . 9 . Rewire 17 | . . . . 16 . . . . . 1 . Trap . | . . . . . . . . . . . . Miscellaneous . | . . . . . . . . . . . . Route ------- -11/Scrapyard -10/Materials -9/Materials -8/Materials -7/Factory -6/Factory -5/Factory -4/Factory -3/Research -2/Research -2/DSF -1/Access History --------- Turn | Location | Event 24 | -11/Scrapyard | Discovered new exit (range 15) 70 | -11/Scrapyard | Entered Materials 263 | -10/Materials | Discovered new exit (range 11) 321 | -10/Materials | Build established: Mutant 599 | -10/Materials | Entered another Materials area 599 | -9/Materials | Evolved 2 slots: Utility x2 699 | -9/Materials | Destroyed 7 combat bots 886 | -9/Materials | Lost 6 parts (1p2n1u2w) 1134 | -9/Materials | Core integrity fell below 50% 1138 | -9/Materials | Build established: Scavenger-Mutant 1168 | -9/Materials | Destroyed 8 combat bots 1291 | -9/Materials | Discovered new exit (range 12) 1348 | -9/Materials | Entered another Materials area 1348 | -8/Materials | Evolved 2 slots: Utility x1, Weapon x1 1569 | -8/Materials | Repaired Nuclear Core 1647 | -8/Materials | Build established: Scavenger-Tank 2001 | -8/Materials | Build established: Scavenger-Gunner 2027 | -8/Materials | Discovered new exit (range 14) 2096 | -8/Materials | Core integrity fell below 50% 2128 | -8/Materials | Lost 7 parts (1p1n3u2w) 2193 | -8/Materials | Destroyed 8 combat bots 2200 | -8/Materials | Core integrity fell below 20% 2249 | -8/Materials | Entered Factory 2249 | -7/Factory | Evolved 2 slots: Propulsion x1, Utility x1 3073 | -7/Factory | Discovered new exit (range 8) 3078 | -7/Factory | Destroyed 8 combat bots 3078 | -7/Factory | Lost 4 parts (1p2u1w) 3125 | -7/Factory | Entered another Factory area 3125 | -6/Factory | Evolved 2 slots: Utility x2 3419 | -6/Factory | Garrison activated, responded to threat 3530 | -6/Factory | Garrison activated, responded to threat 3901 | -6/Factory | Discovered new exit (range 8) 3914 | -6/Factory | Entered another Factory area 3914 | -5/Factory | Evolved 2 slots: Propulsion x1, Utility x1 4198 | -5/Factory | Spotted B-75 Beast 4255 | -5/Factory | Destroyed B-75 Beast 4449 | -5/Factory | Lost 4 parts (1p1n2u) 4518 | -5/Factory | Destroyed 7 combat bots 4522 | -5/Factory | Lost 5 parts (1p1n1u2w) 4565 | -5/Factory | Core integrity fell below 50% 4596 | -5/Factory | Lost 13 parts (2p2n5u4w) 4706 | -5/Factory | Discovered new exit (range 12) 4710 | -5/Factory | Entered another Factory area 4710 | -4/Factory | Evolved 2 slots: Power x1, Utility x1 4810 | -4/Factory | Identified exit to DSF 4945 | -4/Factory | Discovered new exit (range 15) 4959 | -4/Factory | Entered Research 4959 | -3/Research | Evolved 2 slots: Propulsion x1, Utility x1 5232 | -3/Research | Lost 4 parts (2p1u1w) 5508 | -3/Research | First assault squad dispatched 5582 | -3/Research | Lost 8 parts (1p3n2u2w) 5623 | -3/Research | System corruption reached 10% 5659 | -3/Research | Lost 3 parts (2u1w) 5771 | -3/Research | Found Prototype Protection 5771 | -3/Research | Identified Centrium Heavy Armor Plating 5915 | -3/Research | Found Prototype Launcher 6000 | -3/Research | Discovered new exit (range 6) 6019 | -3/Research | Entered another Research area 6019 | -2/Research | Evolved 2 slots: Power x1, Weapon x1 6074 | -2/Research | Build established: Scavenger-Tank 6231 | -2/Research | Identified exit to DSF 6234 | -2/Research | Entered DSF 6290 | -2/DSF | Additional patrols routed to DSF 6344 | -2/DSF | Identified Hellfire Missile Launcher 6348 | -2/DSF | System corruption reached 10% 6421 | -2/DSF | Discovered new exit (range 11) 6428 | -2/DSF | Lost 14 parts (1p2n6u5w) 6448 | -2/DSF | Core integrity fell below 50% 6477 | -2/DSF | Entered Access 6477 | -1/Access | Evolved 2 slots: Utility x2 6608 | -1/Access | Lost 8 parts (1p3n3u1w) 6672 | -1/Access | Core integrity fell below 50% 6694 | -1/Access | Lost 8 parts (1n2u5w) 6741 | -1/Access | Core integrity fell below 20% 6788 | -1/Access | Lost 7 parts (1p4n2u) 6811 | -1/Access | Destroyed by H-88 Terminator with KE Penetrator Last Messages --------------- Slug penetrates Wall. ALERT: Hostiles spotted, dispatching reinforcements to Terminal A012. Connecting with Terminal... Current location identified: Access >>Open(Door) Sealed Barrier opened. Connecting with Terminal... >>Open(Door) Sealed Barrier opened. ALERT: Suspicious activity at Terminal A003. Dispatching Investigation squad. Connecting with Terminal... ALERT: Suspicious activity at Terminal A004. Dispatching Investigation squad. Slug penetrates Wall. Penetrated by Slug. Slug penetrates Wall. Enh. Force Lance destroyed. Penetrated by Slug. Map ----- +----------------------------------------------------+ | ?????????????????????????????????????????????????? | | ########?????????????????????????????????????????? | | #?????????????????????????????????????????? | | #?????????????????????????????????????????? | | "" #?????????????????????????????????????????? | | "" #?????????????????????????????????????????? | | """ #?????????????????????????????????????????? | | """ * #?????????????????????????????????????????? | | """ #?????????????????????????????????????????? | | """ #?????????????????????????????????????????? | | """ #?????????????????????????????????????????? | | "" #?????????????????????????????????????????? | | #?????????????????????????????????????????? | | #?????????????????????????????????????????? | | #+#"######???????????????????????????????????????? | | #???????????????????????????????????????? | | #???????????????????????????????????????? | | ####### #???????????????????????????????????????? | | " ?# #???????????????????????????????????????? | | """ ?# #????????????????????###????????????????? | | """ # #????????????????????#T###??????????????? | | " # ############?????????" #??????????????? | | + #?????????" #??????????????? | | # #?????????## #??????????????? | | # #####T## #???###????# #??????????????? | | ?# #???#### #####@###### #??????????????? | | ] ?# #??????# #??????????????? | | ####??# #??????# h #??????????????? | | ??????# #??????# p #??????????????? | | ?????? #??????########T #########??????????????? | | ?????? #?????????????####??????????????????????? | | ????? ##???????????????????????????????????????? | | ????? ?????????????????????????????????????????? | | ????? ?????????????????????????????????????????? | | ????! ?????????????????????????????????????????? | | ????! ?????????????????????????????????????????? | | ???? ?????????????????????????????????????????? | | ???? ?????????????????????????????????????????? | | ?????? ?????????????????????????????????????????? | | ?????????????????????????????????????????????????? | | ?????????????????????????????????????????????????? | | ?????????????????????????????????????????????????? | | ?????????????????????????????????????????????????? | | ?????????????????????????????????????????????????? | | ?????????????????????????????????????????????????? | | ?????????????????????????????????????????????????? | | ?????????????????????????????????????????????????? | | ?????????????????????????????????????????????????? | | ?????????????????????????????????????????????????? | | ?????????????????????????????????????????????????? | +----------------------------------------------------+ Best States ------------- Heat Dissipation 103 Energy Generation 41 Energy Capacity 360 Matter Stores 302 Matter Capacity 400 Sight Range 20 Robot Scan Range 16 Terrain Scan Density 10 Jamming Range 14 Armor Coverage 1200 Resistance: EM 25 Point Defense Rating 80 Weapon Cycling 20 Phase Shifting 5 Evasion (%) 63 Targeting Accuracy 8 Core Analysis 6 Recoil Reduction 5 Energy Filtering 30 Kinecelleration 40 Offensive Hacking 14 Defensive Hacking 56 Item Schematics ----------------- None Robot Schematics ------------------ None Fabricated ------------ Nothing Alien Tech Used ----------------- None Achievements -------------- Gunslinger Challenges ------------ None Game ------ Seed NuclearCarbideArmor Manual? 0 Play Time 01:49:16 Cumulative 75.0 hours Start 2024.08.16 @ 19:07:22 End 2024.08.16 @ 20:56:25 Sessions 1 Manual Loads 0 Difficulty Rogue Special Mode None Game No. 70 Rogue 70 Adventurer 0 Explorer 0 Win Type - Total 0 Types 0/0/0/0/0/0/0/0/0 Lore% 23 Gallery% 47 Achievement% 35 Wizard Run 0 Options --------- Layout 2 ASCII 0 Keyboard 0 Movement Arrows Keybinds 0 Fullscreen 1 Font 16/Terminus Map View 55x47 Zoom Use 0% Tactical HUD 0 Map Filters NONE Filters NONE Steam 1 RUN: a88aa440-5e23-4cf3-ae96-0faf14b95d19